bitfinex/quotes_ETHUSD_20210701
["timestamp","ask_amount","ask_price","bid_price","bid_amount"]
[1625153456346,3.53076,2124.4,2124.3,0.01560287]
[1625153458232,31.38076,2124.4,2123.3,7.03814318]
[1625153458331,0.00942681,2124.3,2123.3,7.03814318]
[1625153458531,0.03223025,2123.8,2123.3,7.03814318]
[1625153462502,0.03223025,2123.8,2123.3,9.03814318]
[1625153463557,0.03223025,2123.8,2123.2,9.41555]
[1625153465194,0.0149445,2123.7,2123.2,9.41555]
[1625153465894,0.00835755,2123.6,2123.2,9.41555]
[1625153466975,4.44110484,2123.9,2123.2,9.41555]
[1625153467125,4.44110484,2123.9,2123.0,7.04]
[1625153467224,4.44110484,2123.9,2123.0,6.89]
[1625153467329,4.44110484,2123.9,2122.8,20.70857161]
[1625153467425,4.44110484,2123.9,2122.8,10.07687161]
[1625153467726,3.53166,2123.6,2122.8,10.07687161]
[1625153467827,3.53166,2123.6,2123.3,0.03223025]
[1625153468078,7.06359,2123.5,2123.3,0.03223025]
[1625153468180,3.53166,2123.6,2123.3,0.03223025]
[1625153468801,3.5316202,2123.9,2123.3,0.03223025]
[1625153469467,0.06,2123.8,2123.3,0.03223025]
[1625153469552,12.9491102,2123.9,2123.3,0.03223025]
[1625153469651,3.53125,2123.9,2123.3,3.30493025]
[1625153469755,0.02865006,2124.3,2123.4,0.15]
[1625153469951,0.02865006,2124.3,2123.4,0.21]
[1625153470151,0.02865006,2124.3,2123.4,3.91]
[1625153470254,0.02865006,2124.3,2123.4,3.838837]
[1625153470745,0.02865006,2124.3,2123.8,7.06019]
[1625153470851,0.11146273,2124.2,2123.8,11.48009]
[1625153471294,3.48540449,2124.7,2123.9,27.85]
[1625153471599,3.48540449,2124.7,2123.8,5.344]
[1625153471844,10.54536449,2124.7,2124.1,7.05945]
[1625153472094,10.54536449,2124.7,2123.8,5.344]
[1625153473045,10.54536449,2124.7,2123.8,0.9241]
[1625153473151,10.54536449,2124.7,2123.7,9.56297]
[1625153474150,3.48540449,2124.7,2123.7,9.56297]
[1625153474705,7.06012,2124.6,2123.7,9.56297]
[1625153475287,20.0,2124.5,2123.5,9.41391]
[1625153475374,30.0,2124.5,2123.4,3.7]
[1625153475472,30.14,2124.5,2123.4,3.7]
[1625153475570,32.48222589,2124.5,2123.4,3.7]
[1625153475674,0.06,2124.4,2123.4,3.7]
[1625153475776,11.92484,2124.0,2123.4,3.7]
[1625153475874,11.92484,2124.0,2123.9,0.01323522]
[1625153476630,31.92484,2124.0,2123.9,0.01323522]
[1625153476732,34.24849922,2124.0,2123.9,0.01323522]
[1625153476832,36.52249922,2124.0,2123.9,0.01323522]
[1625153476936,36.52994874,2124.0,2123.9,0.01323522]
[1625153477130,34.25594874,2124.0,2123.9,0.01323522]
[1625153478173,14.25594874,2124.0,2123.9,0.01323522]
[1625153478271,12.01228952,2124.0,2123.9,0.01323522]
[1625153478472,7.14998952,2124.0,2123.9,0.01323522]
[1625153479229,27.85,2123.9,2123.3,6.89]
[1625153479469,0.00744952,2124.0,2123.3,6.89]
[1625153479732,0.03223025,2123.8,2123.3,6.89]
[1625153479928,0.06810186,2123.8,2123.3,6.89]
[1625153480131,7.06348,2123.6,2122.4,9.41768]
[1625153480327,3.53225,2123.5,2122.4,9.41768]
[1625153480480,3.53225,2123.5,2123.3,0.02865006]
[1625153480680,10.0,2123.4,2123.3,0.02865006]
[1625153480783,37.99,2123.4,2123.3,0.02865006]
[1625153480978,0.14,2123.4,2123.3,0.02865006]
[1625153481232,7.06443,2123.4,2123.3,0.02865006]
[1625153482078,4.27538444,2123.4,2123.3,0.02865006]
[1625153483435,4.38687199,2123.4,2123.3,0.02865006]
[1625153483883,0.11148755,2123.4,2123.3,0.02865006]
[1625153484302,19.07591755,2123.4,2123.3,0.02865006]
[1625153484501,7.17591755,2123.4,2123.3,0.02865006]
[1625153486303,11.23131755,2123.4,2123.3,0.02865006]
[1625153486455,11.37131755,2123.4,2123.3,0.02865006]
[1625153487155,17.55031755,2123.4,2123.3,0.02865006]
[1625153487710,17.41031755,2123.4,2123.3,0.02865006]
[1625153490464,11.23131755,2123.4,2123.3,0.02865006]
[1625153491756,0.12400234,2123.4,2123.3,0.02865006]
[1625153492709,15.38450455,2123.4,2123.3,0.02865006]
[1625153492859,0.13450455,2123.4,2123.3,0.02865006]
[1625153501867,0.12772455,2123.4,2123.3,0.02865006]
[1625153502668,27.97772455,2123.4,2123.3,5.006e-05]
[1625153502771,0.18772455,2123.4,2123.3,5.006e-05]
[1625153502925,0.12094455,2123.4,2123.3,5.006e-05]
[1625153506921,7.18615455,2123.4,2123.3,5.006e-05]
[1625153511068,7.17956455,2123.4,2123.3,5.006e-05]
[1625153511259,0.06810186,2123.8,2123.4,7.50733073]
[1625153511340,0.06810186,2123.8,2123.4,3.44823337]
[1625153511438,0.06810186,2123.8,2123.4,3.4406]
[1625153511539,0.06810186,2123.8,2123.5,0.14]
[1625153511839,0.06151186,2123.8,2123.5,0.14]
[1625153512187,0.06151186,2123.8,2123.6,0.04]
[1625153512290,0.06151186,2123.8,2123.7,7.06036]
[1625153512437,10.5911169,2124.4,2123.7,7.06036]
[1625153512588,10.5911169,2124.4,2124.0,3.1]
[1625153512687,10.5911169,2124.4,2124.0,7.9705]
[1625153512794,3.53035,2124.7,2124.0,7.9705]
[1625153512795,3.53028,2124.6,2124.0,7.9705]
[1625153512891,9.43986628,2124.8,2124.0,7.9705]
[1625153512892,0.02519628,2124.8,2124.0,7.9705]
[1625153513039,0.02519628,2124.8,2124.1,0.04]
[1625153513136,0.02519628,2124.8,2124.1,0.19]
[1625153513294,0.02519628,2124.8,2124.4,7.05786]
[1625153513577,0.02519628,2124.8,2124.5,0.15]
[1625153513722,0.02519628,2124.8,2124.5,3.8775]
[1625153514267,0.03483874,2124.8,2124.5,3.8775]
[1625153514602,0.03483874,2124.8,2124.6,0.16]
[1625153515200,0.03483874,2124.8,2124.6,7.21713]
[1625153516750,0.03483874,2124.8,2124.6,0.16]
[1625153516905,0.03483874,2124.8,2124.2,0.15]
[1625153517006,5.06113874,2124.8,2124.2,0.15]
[1625153517305,5.06113874,2124.8,2124.0,3.1]
[1625153517506,12.12110874,2124.8,2124.0,3.1]
[1625153517707,12.12110874,2124.8,2123.6,10.51034]
[1625153517805,15.65152874,2124.8,2123.6,3.45]
[1625153517985,25.65152874,2124.8,2123.6,3.45]
[1625153518079,25.65152874,2124.8,2123.6,0.15]
[1625153518179,29.18207994,2124.8,2123.6,0.15]
[1625153518284,32.71238994,2124.8,2123.6,0.15]
[1625153518379,25.65241994,2124.8,2123.6,0.15]
[1625153518481,0.00977451,2124.7,2123.6,0.15]
[1625153518582,25.65241994,2124.8,2123.6,0.15]
[1625153518733,25.65241994,2124.8,2123.4,20.096]
[1625153518832,0.02486155,2124.7,2123.4,20.096]
[1625153518931,25.66306924,2124.8,2123.4,20.096]
[1625153519134,7.06173,2124.2,2123.4,10.1272]
[1625153519234,21.31173,2124.2,2123.3,5.006e-05]
[1625153519486,41.31173,2124.2,2123.3,5.006e-05]
[1625153519685,3.59166,2124.1,2123.3,5.006e-05]
[1625153519784,20.0,2124.0,2123.3,5.006e-05]
[1625153519885,30.0,2124.0,2123.3,5.006e-05]
[1625153520414,10.0,2124.0,2123.3,5.006e-05]
[1625153520714,3.53181,2123.9,2123.3,5.006e-05]
[1625153520865,15.13961,2123.9,2123.3,5.006e-05]
[1625153521116,7.06348,2123.7,2123.3,5.006e-05]
[1625153521217,11.03498,2123.7,2123.3,5.006e-05]
[1625153523926,24.7,2123.4,2123.3,5.006e-05]
[1625153524027,9.06409,2123.4,2123.3,5.006e-05]
[1625153526127,9.18409,2123.4,2123.3,5.006e-05]
[1625153526724,9.18409,2123.4,2123.3,0.01130055]
[1625153527319,2.0,2123.4,2123.3,0.01130055]
[1625153527870,2.0,2123.5,2123.3,0.01130055]
[1625153529774,2.03168617,2123.5,2123.3,0.01130055]
[1625153530375,12.03168617,2123.5,2123.3,0.01130055]
[1625153530674,27.92,2123.4,2123.3,0.01130055]
[1625153530822,0.12,2123.4,2123.3,0.01130055]
[1625153530922,2.0,2123.4,2123.3,0.01130055]
[1625153531864,2.0,2123.4,2123.3,0.01129523]
[1625153533468,24.6,2123.3,2122.3,7.06513429]
[1625153533721,2.0,2123.4,2122.3,7.06513429]
[1625153533818,2.0,2123.4,2122.4,0.04]
[1625153534220,7.06453,2123.2,2122.4,0.04]
[1625153534471,7.06453,2123.2,2122.8,0.03587161]
[1625153534722,7.06453,2123.2,2122.8,0.06810186]
[1625153534921,2.0,2123.1,2122.8,0.06810186]
[1625153535223,6.3067057,2123.2,2122.9,10.6]
[1625153535323,6.3067057,2123.2,2122.8,0.06810186]
[1625153535778,0.03169232,2123.2,2122.8,0.06810186]
[1625153536416,0.01009376,2123.1,2122.8,0.06810186]
[1625153536513,4.69189376,2123.1,2122.8,0.06810186]
[1625153536816,4.70070472,2123.1,2122.8,0.06810186]
[1625153537972,27.06518,2123.0,2122.8,0.06810186]
[1625153538071,7.06518,2123.0,2122.8,0.06810186]
[1625153538255,10.0,2122.9,2122.8,0.06810186]
[1625153539702,30.0,2122.9,2122.8,0.06810186]
[1625153539858,27.8,2122.8,2122.3,0.00079429]
[1625153540303,30.0,2122.9,2122.3,0.00079429]
[1625153540482,0.0316995,2122.8,2122.3,0.00079429]
[1625153540570,7.06653,2122.6,2122.3,0.00079429]
[1625153540673,20.0,2122.5,2122.3,0.00079429]
[1625153540871,20.14,2122.5,2122.3,0.00079429]
[1625153542167,7.06826,2122.4,2122.3,0.00079429]
[1625153542367,7.16826,2122.4,2122.3,0.00079429]
[1625153545724,7.19996258,2122.4,2122.3,0.00079429]
[1625153545827,8.46786258,2122.4,2122.3,0.00079429]
[1625153546132,8.46786258,2122.4,2121.8,0.04302999]
[1625153546133,9.99920571,2122.1,2121.8,0.04302999]
[1625153546227,7.06914,2122.0,2121.8,0.04302999]
[1625153546327,7.16914,2122.0,2121.8,0.04302999]
[1625153546577,0.01206104,2121.9,2121.8,0.04302999]
[1625153547780,0.02034957,2121.9,2121.8,0.04302999]
[1625153548079,17.55,2121.8,2121.3,0.0394071]
[1625153548183,3.7144,2121.9,2121.3,0.0394071]
[1625153548380,3.535,2121.7,2121.3,0.0394071]
[1625153549332,13.535,2121.7,2121.3,0.0394071]
[1625153549525,7.0704,2121.5,2121.3,0.0394071]
[1625153550429,4.27873733,2121.5,2121.3,0.0394071]
[1625153550524,23.5115,2121.4,2121.3,0.0394071]
[1625153550670,34.4047,2121.4,2121.3,0.0394071]
[1625153550923,34.4047,2121.4,2120.8,0.04945199]
[1625153550924,27.8,2121.3,2120.8,0.04945199]
[1625153551120,34.4047,2121.4,2120.8,0.04945199]
[1625153551225,34.37679281,2121.4,2120.8,0.04945199]
[1625153551838,0.04,2121.3,2120.8,0.04945199]
[1625153552536,34.37679281,2121.4,2120.8,0.04945199]
[1625153552640,7.07191,2121.1,2120.8,0.04945199]
[1625153552738,10.0,2121.1,2120.8,0.04945199]
[1625153552843,16.14836,2121.1,2120.8,0.04945199]
[1625153553041,0.08,2121.0,2120.8,0.04945199]
[1625153553454,20.0,2120.9,2120.8,0.04945199]
[1625153553549,33.3386,2120.9,2120.8,0.04945199]
[1625153553743,33.3386,2120.9,2120.8,5.199e-05]
[1625153553997,34.4127,2120.9,2120.8,5.199e-05]
[1625153554250,34.5327,2120.9,2120.8,5.199e-05]
[1625153555202,26.45,2120.8,2120.3,0.00222077]
[1625153555403,34.5327,2120.9,2120.3,0.00222077]
[1625153555601,34.4127,2120.9,2120.3,0.00222077]
[1625153555701,3.53683,2120.8,2120.3,0.00222077]
[1625153555952,31.33683,2120.8,2120.0,0.07722077]
[1625153556054,23.53683,2120.8,2120.0,0.07722077]
[1625153556257,23.58899878,2120.8,2120.0,0.07722077]
[1625153556363,7.07399,2120.5,2120.0,0.07722077]
[1625153556660,2.6907,2120.6,2120.0,0.07722077]
[1625153556761,2.6907,2120.6,2120.0,6.96722077]
[1625153557059,2.6907,2120.6,2120.1,0.12]
[1625153557308,2.6907,2120.6,2120.0,6.96722077]
[1625153557409,2.70475594,2120.6,2120.0,6.96722077]
[1625153557521,1.28315594,2120.6,2120.0,6.96722077]
[1625153557611,0.01405594,2120.6,2120.0,6.96722077]
[1625153558210,0.0847,2120.8,2120.0,6.96722077]
[1625153558480,0.00638916,2120.6,2120.0,6.96722077]
[1625153559284,20.00638916,2120.6,2120.0,6.96722077]
[1625153559382,0.00638916,2120.6,2120.0,6.96722077]
[1625153559487,20.00638916,2120.6,2120.0,6.96722077]
[1625153559731,0.00638916,2120.6,2120.0,6.96722077]
[1625153559839,3.98798916,2120.6,2120.0,6.96722077]
[1625153560137,11.06159916,2120.6,2120.0,6.96722077]
[1625153560759,31.06159916,2120.6,2120.0,6.96722077]
[1625153560908,11.06159916,2120.6,2120.0,6.96722077]
[1625153561112,3.98798916,2120.6,2120.0,6.96722077]
[1625153561211,3.98798916,2120.6,2120.0,6.86722077]
[1625153561358,3.98798916,2120.6,2119.8,6.94444822]
[1625153561660,3.98798916,2120.6,2119.8,14.01716822]
[1625153561911,3.98798916,2120.6,2119.8,6.94444822]
[1625153562309,3.98798916,2120.6,2120.0,0.01368719]
[1625153563015,3.98798916,2120.6,2120.1,0.35]
[1625153563016,0.00638916,2120.6,2120.1,0.35]
[1625153563100,0.04945199,2121.3,2120.3,27.8]
[1625153563203,0.04945199,2121.3,2120.3,27.8073836]
[1625153563305,0.04945199,2121.3,2120.4,0.35]
[1625153563599,0.04945199,2121.3,2120.4,2.96738781]
[1625153563855,0.04945199,2121.3,2120.8,7.06936]
[1625153563960,0.04945199,2121.3,2120.8,11.49786]
[1625153564051,0.04945199,2121.3,2120.9,0.15]
[1625153564506,0.55811989,2122.3,2121.0,27.84808126]
[1625153564662,0.04302999,2122.3,2121.1,0.02703006]
[1625153564753,0.04302999,2122.3,2121.1,0.17703006]
[1625153564859,7.06823,2122.2,2121.1,15.75141787]
[1625153564960,7.06823,2122.2,2121.2,0.00871276]
[1625153565052,7.06823,2122.2,2121.1,15.57438781]
[1625153565230,7.06823,2122.2,2121.3,0.13880522]
[1625153565532,7.06823,2122.2,2121.4,24.95]
[1625153565636,7.06823,2122.2,2121.3,0.13880522]
[1625153565734,7.06823,2122.2,2121.1,12.957]
[1625153565833,7.06823,2122.2,2121.4,0.15]
[1625153566784,27.06823,2122.2,2121.4,0.15]
[1625153566888,20.0,2121.8,2121.4,0.15]
[1625153567037,20.0,2121.8,2121.0,0.15]
[1625153567137,20.0,2121.8,2120.8,0.04945199]
[1625153567235,20.0,2121.8,2121.0,0.15]
[1625153567339,7.07025,2121.6,2121.0,0.15]
[1625153567523,12.08885,2121.6,2121.0,0.15]
[1625153570243,12.08885,2121.6,2121.0,0.16567624]
[1625153570742,12.08885,2121.6,2121.0,0.01567624]
[1625153572591,3.53509,2121.8,2121.0,4.18167624]
[1625153572742,4.0502557,2122.1,2121.1,0.33]
[1625153572743,0.5150899,2122.1,2121.1,0.33]
[1625153572937,11.29931989,2122.3,2121.1,0.33]
[1625153573142,11.29931989,2122.3,2121.2,0.01109736]
[1625153573342,11.29931989,2122.3,2121.2,0.16109736]
[1625153573490,3.53406,2122.1,2121.2,0.15]
[1625153573694,7.06861,2121.9,2121.2,0.15]
[1625153573793,12.95887,2122.1,2121.2,0.15]
[1625153574354,3.53468,2121.7,2121.0,0.01567624]
[1625153574507,20.0,2121.4,2121.0,0.01567624]
[1625153574606,10.0,2121.6,2121.0,0.01567624]
[1625153574765,1.3687,2121.5,2121.0,0.01567624]
[1625153574865,7.07132,2121.3,2121.0,0.01567624]
[1625153576057,23.9265,2121.2,2121.0,0.01567624]
[1625153576158,30.99824,2121.2,2121.0,0.01567624]
[1625153576357,0.1,2121.1,2121.0,0.01567624]
[1625153577494,30.99824,2121.2,2121.0,0.01567624]
[1625153577745,10.99824,2121.2,2121.0,0.01567624]
[1625153578397,30.99824,2121.2,2121.0,0.01567624]
[1625153579692,10.99824,2121.2,2121.0,0.01567624]
[1625153579793,7.07174,2121.2,2121.0,0.01567624]
[1625153582322,7.10346718,2121.2,2121.0,0.01567624]
[1625153585106,20.0,2121.1,2121.0,0.01567624]
[1625153585309,7.07281,2121.0,2120.8,0.04945199]
[1625153585487,10.60927,2121.0,2120.8,0.04945199]
[1625153585888,21.83,2120.9,2120.8,0.04945199]
[1625153586085,0.08,2120.9,2120.8,0.04945199]
[1625153587587,0.11194533,2120.9,2120.8,0.04945199]
[1625153588794,0.03194533,2120.9,2120.8,0.04945199]
[1625153589044,7.84865784,2121.0,2120.8,0.04945199]
[1625153590250,7.84865784,2121.0,2120.8,0.0958291]
[1625153590401,3.5352,2121.4,2120.8,0.0958291]
[1625153590851,10.2993,2121.7,2120.8,0.0958291]
[1625153590948,10.9801,2122.0,2120.8,0.0958291]
[1625153591099,10.9801,2122.0,2120.8,0.10481298]
[1625153591198,7.06983,2121.4,2120.8,0.10481298]
[1625153591295,7.06983,2121.4,2120.8,0.0958291]
[1625153591897,10.60503,2121.4,2120.8,0.0958291]
[1625153592591,3.5352,2121.4,2120.8,0.0958291]
[1625153593646,7.07072,2121.1,2120.8,0.10883592]
[1625153593950,10.6064,2121.1,2120.8,0.10883592]
[1625153595137,3.53568,2121.1,2120.8,0.10883592]
[1625153595239,4.8068,2121.7,2120.8,0.10883592]
[1625153595339,9.42734,2121.8,2120.8,0.10883592]
[1625153595491,3.53498,2121.5,2120.8,0.10883592]
[1625153596852,28.49928,2121.5,2120.8,0.10883592]
[1625153596953,30.83388,2121.5,2120.8,0.10883592]
[1625153597051,10.83388,2121.5,2120.8,0.10883592]
[1625153597157,3.53498,2121.5,2120.8,0.10883592]
[1625153597258,5.89381,2121.8,2120.9,0.15]
[1625153597259,3.53433,2121.8,2120.9,0.15]
[1625153597359,3.53433,2121.8,2121.1,7.06803]
[1625153597455,3.53433,2121.8,2120.9,9.06238553]
[1625153597551,3.53433,2121.8,2121.2,0.35]
[1625153597653,3.53433,2121.8,2121.2,0.15]
[1625153597956,15.31804,2122.2,2121.2,0.15]
[1625153598604,15.31804,2122.2,2121.2,7.21783]
[1625153598708,3.53387,2122.2,2121.2,10.03311771]
[1625153598806,7.11031999,2122.3,2121.3,0.04]
[1625153599048,7.11031999,2122.3,2121.4,3.8617]
[1625153599899,7.11031999,2122.3,2121.4,10.92866]
[1625153600002,0.04302999,2122.3,2121.4,10.92866]
[1625153600201,0.04302999,2122.3,2121.5,0.08]
[1625153600453,0.04302999,2122.3,2121.6,4.25]
[1625153602148,0.04302999,2122.3,2121.6,0.15]
[1625153602351,0.04302999,2122.3,2121.2,2.9]
[1625153602451,4.97522999,2122.3,2121.2,2.9]
[1625153602598,12.04263999,2122.3,2121.3,0.15]
[1625153602897,15.57666999,2122.3,2121.3,0.15]
[1625153604247,0.04302999,2122.3,2121.6,0.01298]
[1625153604346,3.57316906,2122.8,2121.6,0.01298]
[1625153604443,0.03949906,2122.8,2121.7,0.15]
[1625153604592,0.03949906,2122.8,2121.7,3.38163966]
[1625153604890,0.03949906,2122.8,2121.8,2.74597621]
[1625153604978,0.03949906,2122.8,2121.8,2.7266039]
[1625153605182,0.03949906,2122.8,2122.1,7.06435]
[1625153605383,0.03949906,2122.8,2122.2,0.15]
[1625153605484,0.03949906,2122.8,2122.2,5.1689]
[1625153605765,0.03949906,2122.8,2122.2,5.1089]
[1625153607101,0.03949906,2122.8,2122.2,5.0589]
[1625153608051,0.03949906,2122.8,2121.8,0.05096446]
[1625153608147,3.89639906,2122.8,2121.8,0.04302999]
[1625153608251,3.89639906,2122.8,2121.8,0.01634399]
[1625153608346,10.96272906,2122.8,2121.8,0.01634399]
[1625153608550,11.02272906,2122.8,2121.8,0.01634399]
[1625153608746,10.96272906,2122.8,2121.8,0.01634399]
[1625153609555,20.0,2122.3,2122.2,0.01296823]
[1625153609650,24.2981,2122.3,2122.2,0.01296823]
[1625153609947,24.4381,2122.3,2122.2,0.01296823]
[1625153610802,27.8,2122.2,2121.8,1.222e-05]
[1625153610899,30.0,2121.9,2121.8,1.222e-05]
[1625153611149,10.0,2121.9,2121.8,1.222e-05]
[1625153611348,10.14,2121.9,2121.8,1.222e-05]
[1625153612253,17.21124,2121.9,2121.8,1.222e-05]
[1625153612598,37.21124,2121.9,2121.8,1.222e-05]
[1625153613205,52.21124,2121.9,2121.8,1.222e-05]
[1625153613510,27.8,2121.8,2120.8,0.0958291]
[1625153613655,3.53608,2121.6,2120.8,0.0958291]
[1625153613754,10.0,2121.5,2120.8,0.0958291]
[1625153613851,11.2563,2121.5,2120.8,0.0958291]
[1625153614102,20.0,2121.4,2120.8,0.0958291]
[1625153614877,11.2563,2121.5,2120.8,0.0958291]
[1625153615127,7.07206,2121.2,2120.8,0.0958291]
[1625153615928,10.58406,2121.2,2120.8,0.0958291]
[1625153617020,20.58406,2121.2,2120.8,0.0958291]
[1625153617121,13.512,2121.2,2120.8,0.0958291]
[1625153617772,3.512,2121.2,2120.8,0.0958291]
[1625153617974,10.58344,2121.2,2120.8,0.0958291]
[1625153619073,0.01586871,2121.1,2120.8,0.0958291]
[1625153619759,7.07212,2121.0,2120.8,0.0958291]
[1625153621013,0.01586871,2121.1,2120.8,0.0958291]
[1625153622004,7.08785871,2121.1,2120.8,0.0958291]
[1625153622757,0.01586871,2121.1,2120.8,0.0958291]
[1625153623403,0.95026871,2121.1,2120.8,0.0958291]
[1625153623904,10.95026871,2121.1,2120.8,0.0958291]
[1625153624002,0.0158653,2120.9,2120.8,0.0958291]
[1625153628653,3.791,2121.1,2120.8,0.0958291]
[1625153628654,1.01448174,2121.1,2120.8,0.0958291]
[1625153629556,27.8,2121.0,2120.3,0.05216878]
[1625153629658,20.0,2120.8,2120.3,0.05216878]
[1625153629806,20.0,2120.7,2120.3,0.05216878]
[1625153630009,0.1,2120.6,2120.3,0.05216878]
[1625153630103,4.2596,2120.6,2120.3,0.05216878]
[1625153630260,4.1596,2120.6,2120.3,0.05216878]
[1625153633455,4.19133632,2120.6,2120.3,0.05216878]
[1625153633957,4.19133632,2120.6,2120.3,0.06222712]
[1625153641005,7.07322,2120.5,2120.3,0.06222712]
[1625153641400,7.07322,2120.5,2120.3,0.0260202]
[1625153642266,10.88122,2120.5,2120.3,0.0260202]
[1625153642971,3.808,2120.5,2120.3,0.0360698]
[1625153643627,0.03173632,2120.6,2120.3,0.0360698]
[1625153643729,35.5574,2121.2,2120.8,0.03173632]
[1625153643730,3.1,2121.2,2120.8,0.03173632]
[1625153643830,13.01526079,2121.3,2120.3,0.0360698]
[1625153643831,9.47932199,2121.3,2120.3,0.0360698]
[1625153644059,9.47932199,2121.3,2120.4,0.15]
[1625153644060,0.04945199,2121.3,2120.4,0.15]
[1625153644164,0.05216878,2120.8,2120.3,2.73692281]
[1625153644306,0.05216878,2120.8,2120.5,0.15]
[1625153644659,0.04945199,2121.3,2120.7,7.07005]
[1625153645006,0.04945199,2121.3,2120.7,10.60496]
[1625153645966,7.11976199,2121.3,2120.5,0.15]
[1625153646063,11.96676199,2121.3,2120.5,0.15]
[1625153649274,0.01202045,2121.1,2120.5,0.15]
[1625153649474,7.07127,2121.0,2120.5,0.15]
[1625153652595,0.0120137,2120.9,2120.3,9.42738]
[1625153653789,0.0120137,2120.9,2120.4,0.15]
[1625153656006,0.0120137,2120.9,2120.1,14.14154]
[1625153656118,1.3274137,2120.9,2120.1,14.14154]
[1625153656269,0.14,2120.8,2119.8,0.05444822]
[1625153656415,20.0,2120.6,2119.8,0.05444822]
[1625153656511,27.8,2120.4,2119.5,0.13844949]
[1625153656610,4.1,2120.2,2119.5,0.13844949]
[1625153656762,20.03191971,2120.1,2119.5,0.13844949]
[1625153656907,20.04222663,2120.0,2119.5,0.13844949]
[1625153657018,10.0,2119.9,2119.5,9.49e-06]
[1625153657111,7.07788,2119.7,2119.3,0.05622149]
[1625153657260,37.07788,2119.7,2119.2,1.02e-05]
[1625153657359,3.53909,2119.6,2119.1,0.41536306]
[1625153657468,7.24359,2119.6,2119.1,0.41536306]
[1625153657625,20.0,2119.3,2119.1,0.41536306]
[1625153657723,9.56759,2119.6,2119.1,0.41536306]
[1625153657821,3.67909,2119.6,2119.1,0.41536306]
[1625153657923,3.67909,2119.6,2118.8,0.83072613]
[1625153657924,3.53909,2119.6,2118.8,0.05216878]
[1625153658726,7.07842,2119.2,2118.8,0.05216878]
[1625153659069,4.28399416,2119.2,2118.8,0.05216878]
[1625153659223,4.31575207,2119.2,2118.8,0.05216878]
[1625153659369,0.03175791,2119.2,2118.8,0.05216878]
[1625153659867,0.03175791,2119.2,2118.9,0.2]
[1625153660360,0.99165791,2119.2,2118.8,0.05216878]
[1625153660459,4.18135791,2119.2,2118.8,0.05216878]
[1625153661262,7.07812,2119.0,2118.8,0.05216878]
[1625153662350,27.81,2118.9,2118.8,0.05216878]
[1625153662652,0.06,2118.9,2118.8,0.05216878]
[1625153663004,7.07812,2119.0,2118.8,0.05216878]
[1625153663557,27.07812,2119.0,2118.8,0.05216878]
[1625153663658,30.617528,2119.0,2118.8,0.05216878]
[1625153663755,11.978628,2119.0,2118.8,0.05216878]
[1625153663861,11.978628,2119.0,2117.8,6.89]
[1625153663862,27.75,2118.9,2117.8,6.89]
[1625153663960,3.54034,2118.7,2117.8,6.89]
[1625153664061,7.0,2118.4,2117.8,6.89]
[1625153664157,10.6576,2118.4,2117.8,6.89]
[1625153664558,10.68937442,2118.4,2117.8,6.89]
[1625153665061,7.08108,2118.1,2117.8,6.89]
[1625153666960,3.5413934,2118.0,2117.8,6.89]
[1625153667056,15.9851934,2118.0,2117.8,6.89]
[1625153667207,4.2364,2117.9,2117.5,0.02]
[1625153667312,20.0,2117.7,2117.5,0.02]
[1625153667456,30.0,2117.7,2117.5,0.02]
[1625153667652,6.179,2117.7,2117.5,0.02]
[1625153667814,7.08412,2117.6,2117.5,0.02]
[1625153668007,6.179,2117.7,2117.5,0.02]
[1625153668809,13.26067,2117.7,2117.5,0.02]
[1625153669858,13.29244957,2117.7,2117.5,0.02]
[1625153670412,11.835743,2118.0,2117.6,26.4]
[1625153670516,11.81335059,2118.3,2117.5,0.02]
[1625153670764,11.81335059,2118.3,2117.6,0.2]
[1625153670765,0.00777059,2118.3,2117.6,0.2]
[1625153670859,0.00777059,2118.3,2117.5,4.551]
[1625153671012,0.00777059,2118.3,2117.5,7.23472687]
[1625153671319,0.00777059,2118.3,2117.5,4.551]
[1625153671517,7.08091,2118.0,2117.5,4.551]
[1625153671769,7.08091,2118.0,2117.5,0.02]
[1625153671920,0.12,2117.9,2117.5,0.02]
[1625153672366,0.12,2117.9,2117.4,2.4457881]
[1625153672520,20.0,2117.5,2117.4,2.3957881]
[1625153672620,20.0,2117.5,2117.4,8.1e-06]
[1625153672767,24.2152,2117.5,2117.4,8.1e-06]
[1625153673218,24.3552,2117.5,2117.4,8.1e-06]
[1625153673449,26.5512,2117.5,2117.4,8.1e-06]
[1625153673684,6.7672,2117.5,2117.4,8.1e-06]
[1625153673783,26.7672,2117.5,2117.4,8.1e-06]
[1625153673933,26.6652,2117.5,2117.4,8.1e-06]
[1625153674091,28.71453778,2117.5,2117.4,8.1e-06]
[1625153674191,29.17053778,2117.5,2117.4,8.1e-06]
[1625153674293,9.17053778,2117.5,2117.4,8.1e-06]
[1625153674395,2.906,2117.5,2117.4,8.1e-06]
[1625153674489,0.14,2117.5,2117.4,8.1e-06]
[1625153674735,10.62611,2117.7,2117.4,8.1e-06]
[1625153674836,7.08352,2117.7,2117.4,8.1e-06]
[1625153675484,6.179,2117.7,2117.4,8.1e-06]
[1625153676323,3.3826337,2117.7,2117.4,8.1e-06]
[1625153676778,0.00750839,2117.6,2117.4,8.1e-06]
[1625153678526,20.00750839,2117.6,2117.4,8.1e-06]
[1625153678624,30.00750839,2117.6,2117.4,8.1e-06]
[1625153678927,2.322,2117.5,2117.4,8.1e-06]
[1625153679027,2.462,2117.5,2117.4,8.1e-06]
[1625153679226,2.402,2117.5,2117.4,8.1e-06]
[1625153679329,5.802,2117.5,2117.4,8.1e-06]
[1625153679476,5.796,2117.5,2117.4,8.1e-06]
[1625153679776,5.742,2117.5,2117.4,8.1e-06]
[1625153679925,25.742,2117.5,2117.4,8.1e-06]
[1625153680216,25.706,2117.5,2117.4,8.1e-06]
[1625153680218,25.682,2117.5,2117.4,8.1e-06]
[1625153680518,25.658,2117.5,2117.4,8.1e-06]
[1625153680867,25.694,2117.5,2117.4,8.1e-06]
[1625153681069,25.67,2117.5,2117.4,8.1e-06]
[1625153681269,23.54,2117.5,2117.4,8.1e-06]
[1625153681371,29.719,2117.5,2117.4,8.1e-06]